fUSD/lending_fUSD_20260615
["ID","MTS","AMOUNT","RATE_DAILY","PERIOD"]
[425117628,1781530243000,-404.46092719,0.00022482,2]
[425117626,1781530243000,-200.0,0.00022482,2]
[425117624,1781530243000,-501.0,0.00022429,6]
[425117663,1781530243000,-941.312626,0.00023,2]
[425117623,1781530243000,-500.0,0.000224,3]
[425117635,1781530243000,-151.0,0.00022482,2]
[425117633,1781530243000,-151.0,0.00022482,2]
[425117637,1781530243000,-2405.55389863,0.00022482,2]
[425117652,1781530243000,-535.99,0.0002262,2]
[425117650,1781530243000,-201.583489,0.00022601,14]
[425117656,1781530243000,-273.8475,0.00022892,14]
[425117647,1781530243000,-178.94843,0.00022601,14]
[425117654,1781530243000,-741.93,0.000227,7]
[425117658,1781530243000,-328.522198,0.00022987,14]
[425117657,1781530243000,-2000.0,0.00022923,7]
[425117659,1781530243000,-1661.0,0.00023,2]
[425117662,1781530243000,-235.0,0.00023,2]
[425117640,1781530243000,-215.29850387,0.00022482,2]
[425117691,1781530243000,-631.0,0.00023505,2]
[425117729,1781530243000,-725.2,0.00024658,2]
[425117695,1781530243000,-217.15233878,0.00023578,2]
[425117728,1781530243000,-2327.0,0.00024644,3]
[425117727,1781530243000,-160.0,0.0002464,3]
[425117724,1781530243000,-775.4,0.00024324,2]
[425117726,1781530243000,-741.93,0.000246,7]
[425117725,1781530243000,-152.0,0.00024553,4]
[425117731,1781530243000,-151.0,0.00024658,2]
[425117733,1781530243000,-301.136886,0.00024658,2]
[425117730,1781530243000,-1000.0,0.00024658,2]
[425117735,1781530243000,-301.136886,0.00024658,2]
[425117737,1781530243000,-301.136886,0.00024658,2]
[425117740,1781530243000,-233.5188934,0.00024674,2]
[425117738,1781530243000,-200.0,0.00024674,2]
[425117742,1781530243000,-1422.79,0.00024686,7]
[425117739,1781530243000,-404.46092719,0.00024674,2]
[425117741,1781530243000,-2781.82699784,0.00024674,2]
[425117736,1781530243000,-301.136886,0.00024658,2]
[425117746,1781530243000,-250.0,0.00024809,2]
[425117743,1781530243000,-153.8194,0.00024756,2]
[425117745,1781530243000,-250.0,0.00024809,2]
[425117744,1781530243000,-250.0,0.00024809,2]
[425117748,1781530243000,-25000.0,0.00024932,7]
[425117747,1781530243000,-287.56680205,0.00024809,2]
[425117750,1781530243000,-25000.0,0.00024941,7]
[425117692,1781530243000,-1228.0,0.00023505,2]
[425117751,1781530243000,-325.426013,0.00024976,7]
[425117723,1781530243000,-14061.19,0.00024312,2]
[425117720,1781530243000,-601.9,0.00024174,2]
[425117749,1781530243000,-9956.42,0.00024941,7]
[425117722,1781530243000,-501.0,0.000242,7]
[425117721,1781530243000,-501.0,0.000242,7]
[425117694,1781530243000,-404.46092719,0.00023578,2]
[425117699,1781530243000,-500.0,0.00024,2]
[425117696,1781530243000,-2586.85809042,0.00023578,2]
[425117697,1781530243000,-2327.0,0.000238,3]
[425117698,1781530243000,-203.621818,0.00023801,7]
[425117703,1781530243000,-941.312626,0.00024,2]
[425117702,1781530243000,-235.0,0.00024,2]
[425117700,1781530243000,-1661.0,0.00024,2]
[425117707,1781530243000,-155.0,0.00024,2]
[425117704,1781530243000,-175.0,0.00024,2]
[425117705,1781530243000,-969.0,0.00024,2]
[425117706,1781530243000,-165.0,0.00024,2]
[425117690,1781530243000,-1359.0,0.00023505,2]
[425117710,1781530243000,-156.57339269,0.00024,2]
[425117701,1781530243000,-519.0,0.00024,2]
[425117713,1781530243000,-200.0,0.00024126,2]
[425117719,1781530243000,-2333.87,0.00024174,2]
[425117715,1781530243000,-225.18697532,0.00024126,2]
[425117714,1781530243000,-404.46092719,0.00024126,2]
[425117717,1781530243000,-150.0,0.00024164,2]
[425117718,1781530243000,-5742.96,0.00024174,2]
[425117712,1781530243000,-376.83,0.0002411,2]
[425117711,1781530243000,-200.0,0.00024,2]
[425117708,1781530243000,-282.0,0.00024,2]
[425117709,1781530243000,-382.0,0.00024,2]
[425117716,1781530243000,-2682.57183977,0.00024126,2]
[425117786,1781530244000,-535.99,0.00025008,2]
[425117792,1781530244000,-250.0,0.00025078,2]
[425117790,1781530244000,-250.0,0.00025078,2]
[425117789,1781530244000,-250.0,0.00025078,2]
[425117785,1781530244000,-222.97,0.00025,2]
[425117784,1781530244000,-222.97,0.00025,2]
[425117782,1781530244000,-222.97,0.00025,2]
[425117783,1781530244000,-222.97,0.00025,2]
[425117777,1781530244000,-222.97,0.00025,2]
[425117787,1781530244000,-2327.0,0.00025011,3]
[425117791,1781530244000,-250.0,0.00025078,2]
[425117798,1781530244000,-2327.0,0.0002521,3]
[425117802,1781530244000,-2884.75459676,0.00025222,2]
[425117794,1781530244000,-250.0,0.00025078,2]
[425117803,1781530244000,-2327.0,0.00025268,3]
[425117804,1781530244000,-250.0,0.00025348,2]
[425117797,1781530244000,-501.0,0.00025086,8]
[425117795,1781530244000,-250.0,0.00025078,2]
[425117796,1781530244000,-250.0,0.00025078,2]
[425117800,1781530244000,-404.46092719,0.00025222,2]
[425117801,1781530244000,-242.15909246,0.00025222,2]
[425117799,1781530244000,-200.0,0.00025222,2]
[425117779,1781530244000,-222.97,0.00025,2]
[425117807,1781530244000,-250.0,0.00025348,2]
[425117793,1781530244000,-250.0,0.00025078,2]
[425117775,1781530244000,-389.08739407,0.00025,2]
[425117761,1781530244000,-800.0,0.00025,9]
[425117780,1781530244000,-222.97,0.00025,2]
[425117812,1781530244000,-250.0,0.00025618,2]
[425117752,1781530244000,-1677.0,0.00025,2]
[425117753,1781530244000,-532.65400126,0.00025,2]
[425117755,1781530244000,-150.0,0.00025,2]
[425117754,1781530244000,-251.0,0.00025,2]
[425117756,1781530244000,-150.0,0.00025,2]
[425117757,1781530244000,-150.0,0.00025,2]
[425117758,1781530244000,-174.863,0.00025,2]
[425117764,1781530244000,-800.0,0.00025,9]
[425117762,1781530244000,-800.0,0.00025,9]
[425117760,1781530244000,-800.0,0.00025,9]
[425117766,1781530244000,-350.53557048,0.00025,9]
[425117763,1781530244000,-800.0,0.00025,9]
[425117759,1781530244000,-800.0,0.00025,9]
[425117767,1781530244000,-800.0,0.00025,9]
[425117765,1781530244000,-800.0,0.00025,9]
[425117768,1781530244000,-800.0,0.00025,9]
[425117769,1781530244000,-800.0,0.00025,9]
[425117781,1781530244000,-222.97,0.00025,2]
[425117771,1781530244000,-192.28150736,0.00025,2]
[425117772,1781530244000,-987.78741095,0.00025,2]
[425117770,1781530244000,-873.93512374,0.00025,9]
[425117773,1781530244000,-169.0,0.00025,2]
[425117774,1781530244000,-285.0,0.00025,2]
[425117778,1781530244000,-222.97,0.00025,2]
[425117776,1781530244000,-222.97,0.00025,2]
[425117816,1781530244000,-250.0,0.00025618,2]
[425117788,1781530244000,-168.877929,0.00025076,7]
[425117810,1781530244000,-250.0,0.00025348,2]
[425117836,1781530244000,-8000.0,0.00025894,7]
[425117840,1781530244000,-550.0,0.00026,2]
[425117839,1781530244000,-341.93039323,0.00025976,4]
[425117848,1781530244000,-500.0,0.00026089,2]
[425117850,1781530244000,-500.0,0.00026089,2]
[425117849,1781530244000,-500.0,0.00026089,2]
[425117842,1781530244000,-269.17,0.00026027,7]
[425117841,1781530244000,-200.0,0.00026,2]
[425117844,1781530244000,-500.0,0.00026089,2]
[425117846,1781530244000,-500.0,0.00026089,2]
[425117843,1781530244000,-202.52,0.00026027,10]
[425117845,1781530244000,-500.0,0.00026089,2]
[425117851,1781530244000,-500.0,0.00026089,2]
[425117853,1781530244000,-500.0,0.00026089,2]
[425117852,1781530244000,-500.0,0.00026089,2]
[425117854,1781530244000,-500.0,0.00026089,2]
[425117861,1781530244000,-580.0,0.00026089,2]
[425117855,1781530244000,-500.0,0.00026089,2]
[425117857,1781530244000,-500.0,0.00026089,2]
[425117858,1781530244000,-500.0,0.00026089,2]
[425117860,1781530244000,-500.0,0.00026089,2]
[425117856,1781530244000,-500.0,0.00026089,2]
[425117859,1781530244000,-500.0,0.00026089,2]
[425117863,1781530244000,-200.0,0.00026089,2]
[425117805,1781530244000,-250.0,0.00025348,2]
[425117829,1781530244000,-2327.0,0.00025818,3]
[425117831,1781530244000,-250.0,0.00025887,2]
[425117847,1781530244000,-500.0,0.00026089,2]
[425117838,1781530244000,-501.0,0.00025971,9]
[425117837,1781530244000,-160.0,0.00025924,3]
[425117811,1781530244000,-150.0,0.00025373,2]
[425117815,1781530244000,-250.0,0.00025618,2]
[425117813,1781530244000,-250.0,0.00025618,2]
[425117808,1781530244000,-250.0,0.00025348,2]
[425117814,1781530244000,-250.0,0.00025618,2]
[425117809,1781530244000,-250.0,0.00025348,2]
[425117818,1781530244000,-160.0,0.00025696,3]
[425117817,1781530244000,-250.0,0.00025618,2]
[425117826,1781530244000,-5742.96,0.00025786,2]
[425117827,1781530244000,-2333.87,0.00025786,2]
[425117819,1781530244000,-621.78829552,0.00025768,2]
[425117820,1781530244000,-775.4783256,0.00025768,2]
[425117806,1781530244000,-250.0,0.00025348,2]
[425117835,1781530244000,-250.0,0.00025887,2]
[425117823,1781530244000,-404.46092719,0.0002577,2]
[425117822,1781530244000,-343.9237021,0.0002577,2]
[425117862,1781530244000,-200.0,0.00026089,2]
[425117825,1781530244000,-2991.49051684,0.0002577,2]
[425117824,1781530244000,-251.11897888,0.0002577,2]
[425117830,1781530244000,-2327.0,0.00025848,3]
[425117828,1781530244000,-601.9,0.00025786,2]
[425117821,1781530244000,-151.0,0.00025768,2]
[425117832,1781530244000,-250.0,0.00025887,2]
[425117834,1781530244000,-250.0,0.00025887,2]
[425117833,1781530244000,-250.0,0.00025887,2]
[425117901,1781530245000,-236.866385,0.00026089,2]
[425117894,1781530245000,-200.0,0.00026089,2]
[425117900,1781530245000,-236.866385,0.00026089,2]
[425117897,1781530245000,-200.0,0.00026089,2]
[425117899,1781530245000,-171.0,0.00026089,2]
[425117893,1781530245000,-200.0,0.00026089,2]
[425117904,1781530245000,-250.0,0.00026157,2]
[425117903,1781530245000,-236.866385,0.00026089,2]
[425117898,1781530245000,-200.0,0.00026089,2]
[425117896,1781530245000,-200.0,0.00026089,2]
[425117902,1781530245000,-236.866385,0.00026089,2]
[425117906,1781530245000,-250.0,0.00026157,2]
[425117908,1781530245000,-479.0,0.00026289,3]
[425117915,1781530245000,-250.0,0.00026427,2]
[425117907,1781530245000,-250.0,0.00026157,2]
[425117910,1781530245000,-741.93,0.000263,7]
[425117914,1781530245000,-260.4103811,0.00026318,2]
[425117919,1781530245000,-1228.0,0.00026505,2]
[425117916,1781530245000,-250.0,0.00026427,2]
[425117917,1781530245000,-250.0,0.00026427,2]
[425117918,1781530245000,-1359.0,0.00026505,2]
[425117909,1781530245000,-775.4,0.00026296,2]
[425117912,1781530245000,-200.0,0.0002631,3]
[425117913,1781530245000,-404.46092719,0.00026318,2]
[425117911,1781530245000,-200.0,0.0002631,3]
[425117905,1781530245000,-250.0,0.00026157,2]
[425117892,1781530245000,-200.0,0.00026089,2]
[425117864,1781530245000,-200.0,0.00026089,2]
[425117890,1781530245000,-200.0,0.00026089,2]
[425117920,1781530245000,-9956.42,0.00026588,7]
[425117872,1781530245000,-200.0,0.00026089,2]
[425117867,1781530245000,-200.0,0.00026089,2]
[425117865,1781530245000,-200.0,0.00026089,2]
[425117870,1781530245000,-200.0,0.00026089,2]
[425117871,1781530245000,-200.0,0.00026089,2]
[425117868,1781530245000,-200.0,0.00026089,2]
[425117869,1781530245000,-200.0,0.00026089,2]
[425117873,1781530245000,-200.0,0.00026089,2]
[425117874,1781530245000,-200.0,0.00026089,2]
[425117882,1781530245000,-200.0,0.00026089,2]
[425117883,1781530245000,-200.0,0.00026089,2]
[425117891,1781530245000,-200.0,0.00026089,2]
[425117876,1781530245000,-200.0,0.00026089,2]
[425117880,1781530245000,-200.0,0.00026089,2]
[425117881,1781530245000,-200.0,0.00026089,2]
[425117879,1781530245000,-200.0,0.00026089,2]
[425117877,1781530245000,-200.0,0.00026089,2]
[425117878,1781530245000,-200.0,0.00026089,2]
[425117885,1781530245000,-200.0,0.00026089,2]
[425117887,1781530245000,-200.0,0.00026089,2]
[425117886,1781530245000,-200.0,0.00026089,2]
[425117888,1781530245000,-200.0,0.00026089,2]
[425117884,1781530245000,-200.0,0.00026089,2]
[425117895,1781530245000,-200.0,0.00026089,2]
[425117889,1781530245000,-200.0,0.00026089,2]
[425117875,1781530245000,-200.0,0.00026089,2]
[425117923,1781530245000,-250.0,0.00026696,2]
[425117866,1781530245000,-200.0,0.00026089,2]
[425117926,1781530245000,-201766.24,0.000267,2]
[425117948,1781530245000,-301.136886,0.00027013,2]
[425117953,1781530245000,-150.0,0.00027074,7]
[425117956,1781530245000,-150.0,0.00027074,7]
[425117957,1781530245000,-150.0,0.00027074,7]
[425117959,1781530245000,-150.0,0.00027074,7]
[425117960,1781530245000,-150.0,0.00027074,7]
[425117958,1781530245000,-150.0,0.00027074,7]
[425117961,1781530245000,-150.0,0.00027074,7]
[425117962,1781530245000,-150.0,0.00027074,7]
[425117964,1781530245000,-150.0,0.00027171,7]
[425117963,1781530245000,-150.0,0.00027074,7]
[425117965,1781530245000,-1000.0,0.0002718,2]
[425117966,1781530245000,-1000.0,0.0002718,2]
[425117967,1781530245000,-1000.0,0.0002718,2]
[425117968,1781530245000,-1000.0,0.0002718,2]
[425117969,1781530245000,-1000.0,0.0002718,2]
[425117972,1781530245000,-1000.0,0.0002718,2]
[425117973,1781530245000,-1000.0,0.0002718,2]
[425117971,1781530245000,-1000.0,0.0002718,2]
[425117970,1781530245000,-1000.0,0.0002718,2]
[425117974,1781530245000,-1000.0,0.0002718,2]
[425117975,1781530245000,-1000.0,0.0002718,2]
[425117976,1781530245000,-1000.0,0.0002718,2]
[425117977,1781530245000,-713.23,0.0002718,2]
[425117978,1781530245000,-158.80577866,0.00027181,7]
[425117950,1781530245000,-301.136886,0.00027013,2]
[425117951,1781530245000,-301.136886,0.00027013,2]
[425117980,1781530245000,-151.51557047,0.00027181,7]
[425117949,1781530245000,-301.136886,0.00027013,2]
[425117946,1781530245000,-151.0,0.00027013,2]
[425117924,1781530245000,-250.0,0.00026696,2]
[425117925,1781530245000,-151.0,0.00026697,7]
[425117927,1781530245000,-1505.19,0.00026767,2]
[425117931,1781530245000,-404.46092719,0.00026866,2]
[425117921,1781530245000,-201766.24,0.000266,2]
[425117929,1781530245000,-167.0,0.0002683,3]
[425117930,1781530245000,-501.0,0.00026857,10]
[425117928,1781530245000,-160.0,0.0002683,3]
[425117932,1781530245000,-270.0455652,0.00026866,2]
[425117943,1781530245000,-469.301051,0.00027013,2]
[425117933,1781530245000,-201766.24,0.000269,2]
[425117936,1781530245000,-274.81922984,0.00027,30]
[425117922,1781530245000,-150.0,0.00026641,2]
[425117935,1781530245000,-468212.95541,0.00027,2]
[425117955,1781530245000,-282.82905649,0.00027074,7]
[425117952,1781530245000,-150.0,0.00027074,7]
[425117945,1781530245000,-469.301051,0.00027013,2]
[425117954,1781530245000,-250.99461521,0.00027074,7]
[425117934,1781530245000,-250.0,0.00026966,2]
[425117944,1781530245000,-469.301051,0.00027013,2]
[425117947,1781530245000,-151.0,0.00027013,2]
[425117941,1781530245000,-160.980571,0.00027013,2]
[425117939,1781530245000,-151.0,0.00027013,2]
[425117940,1781530245000,-151.0,0.00027013,2]
[425117937,1781530245000,-331702.4938881,0.00027013,2]
[425117938,1781530245000,-151.0,0.00027013,2]
[425117942,1781530245000,-469.301051,0.00027013,2]
[425118027,1781530246000,-500.0,0.00027397,2]
[425118028,1781530246000,-500.0,0.00027397,2]
[425118026,1781530246000,-500.0,0.00027397,2]
[425118024,1781530246000,-364.23989752,0.00027397,2]
[425118019,1781530246000,-500.0,0.00027397,2]
[425118033,1781530246000,-500.0,0.00027397,2]
[425118023,1781530246000,-299.49362136,0.00027397,2]
[425118021,1781530246000,-500.0,0.00027397,2]
[425118018,1781530246000,-502.62363965,0.00027397,2]
[425118022,1781530246000,-500.0,0.00027397,2]
[425118029,1781530246000,-500.0,0.00027397,2]
[425118034,1781530246000,-500.0,0.00027397,2]
[425118032,1781530246000,-500.0,0.00027397,2]
[425118031,1781530246000,-500.0,0.00027397,2]
[425118030,1781530246000,-500.0,0.00027397,2]
[425118036,1781530246000,-500.0,0.00027397,2]
[425118020,1781530246000,-500.0,0.00027397,2]
[425118043,1781530246000,-500.0,0.00027397,2]
[425118044,1781530246000,-502.52941873,0.00027397,2]
[425118040,1781530246000,-310.57782528,0.00027397,2]
[425118038,1781530246000,-500.0,0.00027397,2]
[425118035,1781530246000,-500.0,0.00027397,2]
[425118037,1781530246000,-500.0,0.00027397,2]
[425118039,1781530246000,-500.0,0.00027397,2]
[425118042,1781530246000,-500.0,0.00027397,2]
[425118025,1781530246000,-500.0,0.00027397,2]
[425118011,1781530246000,-500.0,0.00027397,2]
[425118005,1781530246000,-500.0,0.00027397,2]
[425118014,1781530246000,-500.0,0.00027397,2]
[425118041,1781530246000,-319.42825728,0.00027397,2]
[425117983,1781530246000,-150.0,0.0002719,7]
[425117985,1781530246000,-214.41480572,0.00027203,5]
[425117986,1781530246000,-163.63849962,0.00027203,2]
[425117984,1781530246000,-2000.0,0.00027192,7]
[425117987,1781530246000,-152.0,0.00027246,5]
[425117988,1781530246000,-2018.0,0.00027257,5]
[425117982,1781530246000,-200.0,0.00027188,2]
[425117981,1781530246000,-200.0,0.00027188,2]
[425117989,1781530246000,-179.62129075,0.00027257,7]
[425117990,1781530246000,-154.56991686,0.00027257,7]
[425117991,1781530246000,-150.0,0.00027268,7]
[425117993,1781530246000,-201766.24,0.000273,2]
[425117992,1781530246000,-153.8194,0.00027278,2]
[425117994,1781530246000,-159.25648659,0.000273,30]
[425117996,1781530246000,-176.676302,0.00027318,7]
[425117997,1781530246000,-225930.9282111,0.00027321,2]
[425117998,1781530246000,-1614.9212933,0.00027333,2]
[425118001,1781530246000,-1422.79,0.00027372,7]
[425118002,1781530246000,-535.99526175,0.00027397,2]
[425118000,1781530246000,-150.0,0.00027365,7]
[425118004,1781530246000,-500.0,0.00027397,2]
[425118003,1781530246000,-1893.71965993,0.00027397,2]
[425118007,1781530246000,-500.0,0.00027397,2]
[425118016,1781530246000,-500.0,0.00027397,2]
[425118009,1781530246000,-500.0,0.00027397,2]
[425117995,1781530246000,-150.0,0.00027305,7]
[425118046,1781530246000,-500.0,0.00027397,2]
[425118045,1781530246000,-500.0,0.00027397,2]
[425118077,1781530246000,-699.829414,0.000274,7]
[425118075,1781530246000,-1553.36,0.000274,2]
[425118076,1781530246000,-1229.87,0.000274,7]
[425118081,1781530246000,-4000.0,0.000274,3]
[425118080,1781530246000,-588.829384,0.000274,14]
[425118083,1781530246000,-150.0,0.00027408,7]
[425118084,1781530246000,-404.46092719,0.00027414,2]
[425118090,1781530246000,-150.0,0.00027504,7]
[425118085,1781530246000,-280.03725111,0.00027414,2]
[425118082,1781530246000,-150.0,0.00027408,7]
[425118088,1781530246000,-150.0,0.00027462,7]
[425118086,1781530246000,-57346.08228156,0.0002742,2]
[425118089,1781530246000,-500.0,0.000275,7]
[425118091,1781530246000,-150.0,0.00027537,7]
[425118093,1781530246000,-893.33,0.0002755,30]
[425118096,1781530246000,-1977.63,0.0002755,30]
[425118097,1781530246000,-412.58,0.0002755,2]
[425118095,1781530246000,-1081.85,0.0002755,30]
[425118094,1781530246000,-1986.94,0.0002755,30]
[425118092,1781530246000,-442.03,0.0002755,2]
[425118098,1781530246000,-2891.04,0.0002755,30]
[425118099,1781530246000,-2972.87,0.0002755,30]
[425118100,1781530246000,-150.0,0.00027559,7]
[425118101,1781530246000,-150.0,0.00027575,7]
[425118049,1781530246000,-155.574181,0.00027397,2]
[425118078,1781530246000,-588.829384,0.000274,7]
[425118074,1781530246000,-1327.48,0.000274,2]
[425118087,1781530246000,-150.0,0.00027421,7]
[425118079,1781530246000,-699.829413,0.000274,14]
[425118047,1781530246000,-626.32023057,0.00027397,2]
[425118073,1781530246000,-1000.0,0.000274,2]
[425118051,1781530246000,-725.2,0.00027397,2]
[425118048,1781530246000,-500.50105866,0.00027397,2]
[425118050,1781530246000,-1500.0,0.00027397,2]
[425118053,1781530246000,-151.0,0.00027397,2]
[425118054,1781530246000,-429.72411305,0.00027397,2]
[425118055,1781530246000,-151.0,0.00027397,2]
[425118056,1781530246000,-151.0,0.00027397,2]
[425118062,1781530246000,-151.0,0.00027397,2]
[425118063,1781530246000,-151.0,0.00027397,2]
[425118064,1781530246000,-151.0,0.00027397,2]
[425118065,1781530246000,-151.0,0.00027397,2]
[425118052,1781530246000,-300.0,0.00027397,2]
[425118071,1781530246000,-1000.0,0.00027397,30]
[425118070,1781530246000,-557.34701,0.00027397,2]
[425118066,1781530246000,-151.0,0.00027397,2]
[425118069,1781530246000,-250.306527,0.00027397,2]
[425118072,1781530246000,-165.97031907,0.00027397,3]
[425118067,1781530246000,-238.014867,0.00027397,2]
[425118068,1781530246000,-151.0,0.00027397,2]
[425118057,1781530246000,-151.0,0.00027397,2]
[425118058,1781530246000,-151.0,0.00027397,2]
[425118061,1781530246000,-151.0,0.00027397,2]
[425118059,1781530246000,-151.0,0.00027397,2]
[425118060,1781530246000,-151.0,0.00027397,2]
[425118171,1781530247000,-1229.87,0.000278,7]
[425118172,1781530247000,-741.93,0.000278,7]
[425118183,1781530247000,-1986.94,0.00027872,2]
[425118165,1781530247000,-150.0,0.00027753,7]
[425118177,1781530247000,-412.58,0.00027855,7]
[425118161,1781530247000,-150.0,0.00027742,7]
[425118176,1781530247000,-442.03,0.00027855,7]
[425118169,1781530247000,-442.03,0.00027794,30]
[425118163,1781530247000,-150.0,0.00027742,7]
[425118166,1781530247000,-442.03,0.00027763,7]
[425118173,1781530247000,-442.03,0.00027824,2]
[425118170,1781530247000,-412.58,0.00027794,30]
[425118182,1781530247000,-893.33,0.00027872,2]
[425118175,1781530247000,-150.0,0.0002785,7]
[425118167,1781530247000,-412.58,0.00027763,7]
[425118174,1781530247000,-412.58,0.00027824,2]
[425118179,1781530247000,-500.0,0.00027871,7]
[425118178,1781530247000,-500.0,0.00027871,120]
[425118185,1781530247000,-1977.63,0.00027872,2]
[425118181,1781530247000,-473.913,0.00027872,18]
[425118180,1781530247000,-6690.24,0.00027872,18]
[425118187,1781530247000,-2972.87,0.00027872,2]
[425118113,1781530247000,-150.0,0.00027652,7]
[425118186,1781530247000,-2891.04,0.00027872,2]
[425118164,1781530247000,-501.0,0.00027743,11]
[425118168,1781530247000,-150.0,0.00027768,7]
[425118158,1781530247000,-442.03,0.00027733,2]
[425118104,1781530247000,-412.58,0.0002758,7]
[425118146,1781530247000,-893.33,0.00027711,7]
[425118103,1781530247000,-442.03,0.0002758,7]
[425118105,1781530247000,-442.03,0.00027611,30]
[425118102,1781530247000,-150.0,0.00027575,7]
[425118115,1781530247000,-150.0,0.00027656,7]
[425118111,1781530247000,-412.58,0.00027641,2]
[425118117,1781530247000,-188.31,0.00027671,30]
[425118109,1781530247000,-442.03,0.00027641,2]
[425118120,1781530247000,-188.3,0.00027671,30]
[425118107,1781530247000,-412.58,0.00027611,30]
[425118126,1781530247000,-191.69,0.00027671,30]
[425118122,1781530247000,-191.7,0.00027671,30]
[425118129,1781530247000,-191.7,0.00027671,30]
[425118153,1781530247000,-1977.63,0.00027711,7]
[425118133,1781530247000,-412.58,0.00027672,7]
[425118131,1781530247000,-442.03,0.00027672,7]
[425118137,1781530247000,-591.829384,0.000277,7]
[425118143,1781530247000,-442.03,0.00027702,30]
[425118139,1781530247000,-585.829384,0.000277,14]
[425118141,1781530247000,-591.829384,0.000277,14]
[425118135,1781530247000,-585.829384,0.000277,7]
[425118145,1781530247000,-412.58,0.00027702,30]
[425118148,1781530247000,-1986.94,0.00027711,7]
[425118155,1781530247000,-2891.04,0.00027711,7]
[425118150,1781530247000,-1081.85,0.00027711,7]
[425118159,1781530247000,-412.58,0.00027733,2]
[425118157,1781530247000,-2972.87,0.00027711,7]
[425118124,1781530247000,-282.45,0.00027671,30]
[425118184,1781530247000,-1081.85,0.00027872,2]
[425118195,1781530247000,-150.0,0.00027933,7]
[425118189,1781530247000,-442.03,0.00027885,30]
[425118221,1781530247000,-1977.63,0.00028033,30]
[425118223,1781530247000,-2972.87,0.00028033,30]
[425118220,1781530247000,-1081.85,0.00028033,30]
[425118225,1781530247000,-412.58,0.00028038,7]
[425118228,1781530247000,-412.58,0.00028068,30]
[425118236,1781530247000,-150.0,0.00028115,7]
[425118230,1781530247000,-150.0,0.00028077,7]
[425118226,1781530247000,-150.0,0.00028044,7]
[425118234,1781530247000,-412.58,0.00028099,2]
[425118227,1781530247000,-442.03,0.00028068,30]
[425118233,1781530247000,-442.03,0.00028099,2]
[425118229,1781530247000,-150.0,0.00028077,7]
[425118235,1781530247000,-201766.24,0.000281,2]
[425118231,1781530247000,-150.0,0.00028077,7]
[425118232,1781530247000,-150.0,0.00028077,7]
[425118238,1781530247000,-412.74,0.0002813,7]
[425118237,1781530247000,-442.15,0.0002813,7]
[425118242,1781530247000,-500.0,0.00028156,60]
[425118239,1781530247000,-150.0,0.00028141,30]
[425118241,1781530247000,-500.0,0.00028156,60]
[425118240,1781530247000,-301.489213,0.00028142,7]
[425118245,1781530247000,-1081.85,0.00028194,7]
[425118244,1781530247000,-1986.94,0.00028194,7]